bitfinex/quotes_SOLUSD_20240623
["timestamp","ask_amount","ask_price","bid_price","bid_amount"]
[1719112361963,0.17,134.97,134.93,6.49]
[1719112362167,0.17,134.98,134.93,6.49]
[1719112364781,7.5785,134.98,134.91,100.0]
[1719112364986,0.17,134.97,134.93,6.49]
[1719112365279,0.17,134.98,134.93,6.49]
[1719112365481,7.75732488,134.98,134.93,6.49]
[1719112365680,0.17,134.97,134.93,6.49]
[1719112367880,0.17,134.97,134.89,125.96]
[1719112368095,0.17,134.97,134.93,6.49]
[1719112368393,6.66,134.97,134.92,6.49]
[1719112368586,6.66,134.97,134.89,125.96]
[1719112368893,6.66,134.97,134.92,6.49]
[1719112369054,6.66,134.97,134.91,6.49]
[1719112369475,0.17,134.97,134.91,6.49]
[1719112369695,6.66,134.97,134.91,6.49]
[1719112371776,6.66,134.97,134.92,6.49]
[1719112383114,14.0691,134.97,134.89,100.0]
[1719112383290,6.49,134.95,134.9,6.49]
[1719112384495,6.66,134.96,134.91,6.49]
[1719112385385,0.17,134.95,134.89,100.0]
[1719112385595,16.1556,134.95,134.91,6.49]
[1719112387377,0.17,134.94,134.9,6.49]
[1719112387585,0.17,134.94,134.87,121.7831]
[1719112387984,0.17,134.94,134.9,6.49]
[1719112388876,16.1556,134.95,134.9,6.49]
[1719112389091,16.1556,134.95,134.91,6.49]
[1719112393809,16.1556,134.95,134.89,100.0]
[1719112393991,16.1556,134.95,134.91,6.49]
[1719112395284,23.566,134.95,134.91,6.49]
[1719112397913,7.4107,134.94,134.91,6.49]
[1719112398088,7.4107,134.94,134.89,100.0]
[1719112398408,7.4107,134.94,134.91,6.49]
[1719112398614,16.1556,134.95,134.89,100.0]
[1719112398790,7.4109,134.94,134.9,6.49]
[1719112400533,23.5659,134.95,134.9,6.49]
[1719112407514,23.5659,134.95,134.91,6.49]
[1719112412317,23.5659,134.95,134.91,6.49]
[1719112420805,15.9856,134.95,134.91,100.0]
[1719112421011,15.9637,134.98,134.94,6.49]
[1719112421316,7.409,134.97,134.94,6.49]
[1719112421706,7.409,134.97,134.93,6.49]
[1719112422823,7.409,134.97,134.91,100.0]
[1719112423015,7.409,134.97,134.93,6.49]
[1719112423412,7.4099,134.96,134.89,100.0]
[1719112423727,7.4099,134.96,134.91,6.49]
[1719112425421,22.4052,134.95,134.86,100.8832503]
[1719112425602,7.4115,134.93,134.87,6.49]
[1719112425803,6.49,134.92,134.86,100.8832503]
[1719112426003,6.49,134.92,134.87,6.49]
[1719112427023,6.49,134.9,134.86,0.8832503]
[1719112427406,13.903,134.9,134.86,0.8832503]
[1719112427807,6.49,134.9,134.86,0.8832503]
[1719112430402,13.9029,134.9,134.86,0.8832503]
[1719112431113,7.4138,134.89,134.86,0.8832503]
[1719112433103,6.49,134.87,134.86,0.8832503]
[1719112433521,30.2082,134.87,134.86,0.8832503]
[1719112438833,22.7937,134.87,134.86,0.8832503]
[1719112442633,30.2082,134.87,134.86,0.8832503]
[1719112443127,75.2082,134.87,134.86,0.8832503]
[1719112448711,93.7445,134.87,134.86,0.8832503]
[1719112449410,101.1675,134.87,134.86,0.8832503]
[1719112449835,121.1675,134.87,134.86,0.8832503]
[1719112451511,113.7445,134.87,134.86,0.8832503]
[1719112452439,121.41131167,134.87,134.86,0.8832503]
[1719112454440,122.12931366,134.87,134.86,0.8832503]
[1719112454818,129.55231366,134.87,134.86,0.8832503]
[1719112455811,7.417,134.83,134.77,22.9312]
[1719112456138,6.49,134.81,134.77,22.9312]
[1719112456810,6.49,134.81,134.75,106.49]
[1719112457435,6.49,134.8,134.74,21.9424]
[1719112457637,6.49,134.8,134.75,6.49]
[1719112458424,7.7574,134.82,134.74,21.9424]
[1719112458625,6.49,134.8,134.74,21.9424]
[1719112458836,6.49,134.8,134.75,6.49]
[1719112459535,6.49,134.8,134.74,21.9424]
[1719112459536,6.49,134.79,134.74,28.4324]
[1719112460139,6.49,134.79,134.74,21.9424]
[1719112460338,6.49,134.79,134.74,28.4324]
[1719112462167,6.49,134.79,134.74,21.9424]
[1719112462321,6.49,134.79,134.74,28.4324]
[1719112462735,6.49,134.79,134.74,21.9424]
[1719112462946,6.49,134.79,134.74,28.4324]
[1719112463941,6.49,134.79,134.74,21.9424]
[1719112464247,6.49,134.8,134.75,6.49]
[1719112464924,15.0657718,134.81,134.77,6.49]
[1719112464925,7.6476718,134.81,134.77,6.49]
[1719112465123,7.7573,134.82,134.77,6.49]
[1719112465337,14.2473,134.82,134.77,6.49]
[1719112465730,6.83,134.82,134.76,0.64364566]
[1719112465926,6.83,134.82,134.77,6.49]
[1719112466335,14.2475,134.82,134.77,6.49]
[1719112466833,7.4179,134.81,134.77,6.49]
[1719112474051,7.4184,134.8,134.77,6.49]
[1719112475149,26.19922025,134.84,134.77,106.49]
[1719112475340,20.0,134.83,134.78,7.15501573]
[1719112475527,26.49,134.83,134.78,7.15501573]
[1719112475730,7.4175,134.82,134.78,7.15501573]
[1719112476657,7.4187,134.8,134.77,6.49]
[1719112477350,7.4187,134.8,134.75,100.0]
[1719112477652,7.4192,134.79,134.75,6.49]
[1719112477953,7.4186,134.8,134.76,6.49]
[1719112478150,7.419,134.79,134.74,21.9424]
[1719112478354,7.419,134.79,134.75,6.49]
[1719112478653,7.419,134.79,134.74,28.4324]
[1719112478853,7.4197,134.78,134.74,28.4324]
[1719112479650,7.4191,134.79,134.74,28.4324]
[1719112482059,7.4196,134.78,134.73,0.8832503]
[1719112482256,6.49,134.77,134.73,0.8832503]
[1719112482447,6.49,134.76,134.73,0.8832503]
[1719112482647,6.49,134.77,134.73,0.8832503]
[1719112482844,6.49,134.76,134.73,0.8832503]
[1719112484557,6.49,134.75,134.73,0.8832503]
[1719112491768,13.9113,134.75,134.73,0.8832503]
[1719112491968,6.49,134.74,134.73,0.8832503]
[1719112493353,7.4213,134.75,134.73,0.8832503]
[1719112493354,13.9113,134.75,134.73,0.8832503]
[1719112495283,0.17,134.74,134.73,0.8832503]
[1719112495652,6.66,134.74,134.73,0.8832503]
[1719112495851,14.0817,134.74,134.73,0.8832503]
[1719112496061,14.2517,134.74,134.73,0.8832503]
[1719112496278,6.83,134.74,134.73,0.8832503]
[1719112500879,14.2517,134.74,134.73,0.8832503]
[1719112501978,0.34,134.74,134.73,0.8832503]
[1719112502287,7.6651059,134.76,134.73,0.8832503]
[1719112502591,13.9096,134.78,134.73,7.3732503]
[1719112503060,6.49,134.78,134.73,7.3732503]
[1719112503259,7.419,134.79,134.74,1.48181269]
[1719112503481,7.419,134.79,134.75,6.49]
[1719112503989,13.909,134.79,134.74,7.97181269]
[1719112504990,13.909,134.79,134.74,6.49]
[1719112507091,7.4195,134.78,134.74,6.49]
[1719112510601,7.4195,134.78,134.74,106.49]
[1719112510777,7.66180401,134.8,134.76,6.49]
[1719112510984,7.4182,134.81,134.77,7.97146308]
[1719112511280,7.4182,134.81,134.77,6.49]
[1719112511969,14.15635474,134.83,134.78,1.48124324]
[1719112511970,7.4174,134.82,134.78,1.48124324]
[1719112512168,7.4174,134.82,134.78,6.49]
[1719112512470,7.4173,134.82,134.79,6.49]
[1719112513694,7.4173,134.82,134.77,16.6313]
[1719112513891,7.4173,134.82,134.78,6.49]
[1719112514201,7.4173,134.82,134.79,6.49]
[1719112514559,15.08335474,134.83,134.79,6.49]
[1719112515800,7.66635474,134.83,134.8,6.49]
[1719112515992,7.4163,134.84,134.81,6.49]
[1719112519203,7.4169,134.83,134.79,6.49]
[1719112519496,7.4173,134.82,134.78,106.49]
[1719112519682,13.907,134.83,134.78,106.49]
[1719112519994,7.4173,134.82,134.78,106.49]
[1719112520178,7.4169,134.83,134.78,106.49]
[1719112520714,7.4162,134.84,134.8,6.49]
[1719112521510,7.4168,134.83,134.8,6.49]
[1719112523382,7.4168,134.83,134.79,6.49]
[1719112523714,7.4185,134.8,134.77,16.6313]
[1719112524988,13.9081,134.81,134.77,16.6313]
[1719112525191,7.4181,134.81,134.77,23.1213]
[1719112525408,6.66,134.82,134.77,23.1213]
[1719112525409,7.4169,134.83,134.77,123.1213]
[1719112525579,7.4164,134.84,134.79,6.49]
[1719112525779,13.9064,134.84,134.79,6.49]
[1719112527088,7.4168,134.83,134.79,6.49]
[1719112527496,7.4164,134.84,134.79,6.49]
[1719112527985,7.4164,134.84,134.8,6.49]
[1719112528502,7.4151,134.86,134.83,6.49]
[1719112529408,7.4156,134.85,134.82,6.49]
[1719112529601,7.4152,134.86,134.81,6.49]
[1719112530306,6.49,134.85,134.8,13.1001]
[1719112530614,6.66,134.85,134.8,13.1001]
[1719112530791,7.4162,134.84,134.8,6.6101]
[1719112530983,7.4162,134.84,134.8,13.1001]
[1719112531608,14.0758,134.85,134.8,13.1001]
[1719112532486,7.5853,134.86,134.81,6.49]
[1719112532681,34.58685224,134.89,134.82,6.49]
[1719112532682,7.4148,134.87,134.82,6.49]
[1719112532899,13.9048,134.87,134.82,6.49]
[1719112533094,7.4151,134.86,134.8,6.6101]
[1719112533292,7.4151,134.86,134.82,6.49]
[1719112534600,7.4151,134.86,134.8,6.6101]
[1719112534803,7.4151,134.86,134.82,6.49]
[1719112535990,7.4151,134.86,134.8,6.6101]
[1719112536310,7.4151,134.86,134.81,6.49]
[1719112536692,13.9051,134.86,134.81,6.49]
[1719112537112,13.9051,134.86,134.8,6.6101]
[1719112537318,13.9051,134.86,134.81,6.49]
[1719112538211,14.0759,134.85,134.8,13.1001]
[1719112539309,0.17,134.84,134.8,6.49]
[1719112539503,13.9075,134.82,134.77,23.1213]
[1719112539703,0.34,134.81,134.77,23.1213]
[1719112539900,14.2479,134.81,134.77,16.6313]
[1719112541216,6.66,134.81,134.77,16.6313]
[1719112541397,6.49,134.83,134.78,6.49]
[1719112541595,0.34,134.82,134.78,6.49]
[1719112541794,0.17,134.82,134.78,6.49]
[1719112541993,0.17,134.82,134.77,16.6313]
[1719112541994,0.17,134.82,134.79,6.49]
[1719112542214,14.0764,134.84,134.79,6.49]
[1719112542809,7.4168,134.83,134.79,6.49]
[1719112544498,6.66,134.84,134.77,116.6313]
[1719112544499,7.4173,134.82,134.77,116.6313]
[1719112544802,7.4169,134.83,134.78,6.49]
[1719112545194,7.4174,134.82,134.78,6.49]
[1719112546122,7.417,134.83,134.78,6.49]
[1719112546326,13.907,134.83,134.78,6.49]
[1719112547408,7.417,134.83,134.79,6.49]
[1719112548623,7.5863,134.84,134.79,6.49]
[1719112548925,7.5868,134.83,134.79,6.49]
[1719112552426,7.4163,134.84,134.79,6.49]
[1719112553814,7.4163,134.84,134.79,100.0]
[1719112554015,7.4167,134.83,134.79,6.49]
[1719112554402,7.4173,134.82,134.79,6.49]
[1719112554605,7.4173,134.82,134.78,6.49]
[1719112555012,7.4173,134.82,134.77,116.6313]
[1719112555013,7.4178,134.81,134.77,16.6313]
[1719112555216,7.4178,134.81,134.77,23.1213]
[1719112555417,7.4178,134.81,134.77,16.6313]
[1719112555606,7.4178,134.81,134.77,23.1213]
[1719112556031,13.9075,134.82,134.77,23.1213]
[1719112559708,6.49,134.82,134.77,23.1213]
[1719112560113,13.9069,134.83,134.78,6.49]
[1719112560319,14.0774,134.82,134.77,23.1213]
[1719112560834,14.0774,134.82,134.77,6.49]
[1719112561035,0.17,134.82,134.77,6.49]
[1719112561214,6.83,134.83,134.78,6.49]
[1719112561628,14.2469,134.83,134.78,6.49]
[1719112562531,7.7569,134.83,134.78,6.49]
[1719112562933,34.6787,134.87,134.78,100.0]
[1719112563239,6.13276242,134.86,134.82,6.49]
[1719112563449,30.047,134.87,134.82,6.49]
[1719112563618,23.557,134.87,134.82,6.49]
[1719112564138,7.4151,134.86,134.82,6.49]
[1719112564349,7.4156,134.85,134.79,15.6493]
[1719112564510,7.4156,134.85,134.81,6.49]
[1719112565741,13.9053,134.86,134.81,6.49]
[1719112565918,7.4156,134.85,134.79,15.6493]
[1719112566118,7.4162,134.84,134.79,15.6493]
[1719112566347,7.4162,134.84,134.8,6.49]
[1719112567033,7.5853,134.86,134.81,6.49]
[1719112567269,0.34,134.85,134.81,6.49]
[1719112567446,7.7556,134.85,134.8,6.49]
[1719112567940,0.34,134.85,134.8,6.49]
[1719112568118,0.17,134.85,134.8,6.49]
[1719112568319,7.4148,134.87,134.82,6.49]
[1719112568518,0.17,134.86,134.82,6.49]
[1719112568729,13.9048,134.87,134.82,6.49]
[1719112568927,13.9048,134.87,134.8,100.0]
[1719112569126,7.4153,134.86,134.8,100.0]
[1719112569441,7.4153,134.86,134.82,6.49]
[1719112570849,7.4153,134.86,134.8,100.0]
[1719112571143,7.4153,134.86,134.82,6.49]
[1719112571931,13.9047,134.87,134.82,6.49]
[1719112572322,7.4151,134.86,134.8,100.0]
[1719112572721,7.4151,134.86,134.82,6.49]
[1719112573242,13.9047,134.87,134.82,6.49]
[1719112573946,7.4151,134.86,134.82,6.49]
[1719112574441,7.4151,134.86,134.8,100.0]
[1719112574645,7.4151,134.86,134.82,6.49]
[1719112575332,7.4147,134.87,134.83,6.49]
[1719112576141,7.4147,134.87,134.84,6.49]
[1719112576350,15.45223998,134.88,134.84,6.49]
[1719112576558,14.8365,134.89,134.85,6.49]
[1719112576731,7.414,134.88,134.85,6.49]
[1719112579327,7.423,134.89,134.86,6.49]
[1719112580466,7.4124,134.91,134.84,100.0]
[1719112580641,7.4124,134.91,134.88,6.49]
[1719112581467,7.412,134.92,134.88,6.49]
[1719112581759,7.412,134.92,134.86,100.0]
[1719112581760,7.412,134.92,134.89,6.49]
[1719112581930,7.4114,134.93,134.89,6.49]
[1719112582548,7.4114,134.93,134.86,100.0]
[1719112582549,7.4119,134.92,134.9,6.49]
[1719112583153,7.4114,134.93,134.9,6.49]
[1719112583533,7.4108,134.94,134.9,6.49]
[1719112583733,7.71114339,134.95,134.88,100.0]
[1719112583734,7.4103,134.95,134.91,6.49]
[1719112586152,7.4096,134.96,134.91,6.49]
[1719112587437,7.4096,134.96,134.92,6.49]
[1719112588557,7.4096,134.96,134.91,6.49]
[1719112588761,6.49,134.97,134.88,100.0]
[1719112588959,14.0699,134.96,134.91,6.49]
[1719112589257,7.4099,134.96,134.91,6.49]
[1719112589457,13.8999,134.96,134.91,6.49]
[1719112590547,13.8999,134.96,134.88,100.0]
[1719112590858,13.8999,134.96,134.91,6.49]
[1719112591756,7.4111,134.94,134.87,15.7427]
[1719112591956,13.9013,134.93,134.87,15.7427]
[1719112592168,13.9013,134.93,134.88,6.49]
[1719112593061,6.49,134.93,134.88,106.49]
[1719112593260,6.49,134.94,134.89,6.49]
[1719112593838,0.34,134.95,134.89,6.49]
[1719112594053,6.83,134.94,134.89,6.49]
[1719112595240,0.34,134.94,134.9,6.49]
[1719112596387,7.7507,134.94,134.9,6.49]
[1719112597343,0.34,134.94,134.9,6.49]
[1719112599082,261.7507,134.94,134.9,6.49]
[1719112599890,7.4103,134.95,134.91,6.49]
[1719112601688,7.4107,134.94,134.91,6.49]
[1719112602789,7.4113,134.93,134.88,100.0]
[1719112602993,7.4113,134.93,134.9,6.49]
[1719112603374,7.4118,134.92,134.9,6.49]
[1719112603870,7.4114,134.93,134.9,6.49]
[1719112604704,7.4108,134.94,134.9,6.49]
[1719112605004,6.49,134.95,134.87,15.7427]
[1719112605167,6.49,134.93,134.85,6.3055]
[1719112605365,13.9026,134.91,134.86,6.49]
[1719112605769,7.413,134.9,134.85,6.3055]
[1719112605969,13.903,134.9,134.84,115.4685]
[1719112606199,7.4125,134.91,134.85,6.49]
[1719112606409,13.9025,134.91,134.86,6.49]
[1719112608973,6.49,134.91,134.86,6.49]
[1719112609703,14.072,134.92,134.87,6.49]
[1719112610888,7.582,134.92,134.87,6.49]
[1719112612809,7.582,134.92,134.88,6.49]
[1719112616103,7.4124,134.91,134.88,6.49]
[1719112617495,7.71320555,134.94,134.9,106.49]
[1719112617795,7.4093,134.97,134.93,6.49]
[1719112618490,7.4096,134.96,134.93,6.49]
[1719112618690,7.4096,134.96,134.91,1.24904573]
[1719112619013,7.4096,134.96,134.93,6.49]
[1719112620480,7.4096,134.96,134.92,6.49]
[1719112620702,7.4096,134.96,134.93,1.24886059]
[1719112621697,13.8992,134.97,134.93,1.24886059]
[1719112621896,7.4087,134.98,134.93,7.73886059]
[1719112622102,7.4087,134.98,134.95,6.49]
[1719112622103,7.4086,134.98,134.95,6.49]
[1719112622692,7.70365416,135.0,134.97,6.49]
[1719112622887,7.4083,134.99,134.94,100.0]
[1719112623100,7.4083,134.99,134.95,6.49]
[1719112624199,6.49,135.0,134.94,100.0]
[1719112624380,6.49,134.99,134.93,6.0785]
[1719112624581,7.4087,134.98,134.94,6.49]
[1719112626189,13.8982,134.99,134.94,6.49]
[1719112626599,13.8982,134.99,134.92,100.0]
[1719112626797,6.49,134.98,134.92,100.0]
[1719112627004,6.49,134.99,134.93,6.49]
[1719112627204,6.49,134.99,134.94,6.49]
[1719112627898,7.4079,134.99,134.95,6.49]
[1719112628485,13.8976,135.0,134.95,6.49]
[1719112629382,7.408,134.99,134.95,6.49]
[1719112630003,7.408,134.99,134.92,100.0]
[1719112630188,7.4085,134.98,134.94,6.49]
[1719112630388,7.4085,134.98,134.92,100.0]
[1719112630706,7.4085,134.98,134.94,6.49]
[1719112631087,13.8981,134.99,134.94,6.49]
[1719112631501,7.4081,134.99,134.95,6.49]
[1719112631702,13.8975,135.0,134.95,6.49]
[1719112633100,7.408,134.99,134.95,6.49]
[1719112633817,6.49,135.0,134.95,106.49]
[1719112634119,13.8974,135.0,134.95,6.49]
[1719112635192,7.4079,134.99,134.95,6.49]
[1719112635915,13.8979,134.99,134.94,6.49]
[1719112637917,13.8976,135.0,134.95,6.49]
[1719112638226,6.49,135.0,134.95,6.49]
[1719112638642,14.237,135.01,134.96,6.49]
[1719112638846,6.83,135.01,134.96,6.49]
[1719112639134,6.49,135.01,134.96,6.49]
[1719112639444,13.8964,135.02,134.97,6.49]
[1719112639812,7.407,135.01,134.95,100.0]
[1719112640045,7.407,135.01,134.96,6.49]
[1719112641443,13.897,135.01,134.96,6.49]
[1719112641737,13.8965,135.02,134.97,6.49]
[1719112641939,35.0939,135.03,134.93,100.0]
[1719112642108,6.49,134.99,134.93,100.0]
[1719112642314,7.4085,134.98,134.93,100.0]
[1719112642629,6.49,134.97,134.91,100.0]
[1719112642833,6.49,134.97,134.91,106.49]
[1719112643019,7.4097,134.96,134.91,106.49]
[1719112643220,13.8997,134.96,134.91,106.49]
[1719112644039,6.49,134.96,134.91,106.49]
[1719112644346,13.8996,134.96,134.89,121.547]
[1719112644539,6.49,134.96,134.91,6.49]
[1719112644712,7.4091,134.97,134.92,6.49]
[1719112644713,13.8991,134.97,134.92,6.49]
[1719112644912,6.49,134.97,134.92,6.49]
[1719112646111,13.899,134.97,134.89,121.547]
[1719112646317,13.899,134.97,134.92,6.49]
[1719112647027,6.49,134.97,134.92,6.49]
[1719112647540,13.8991,134.97,134.92,6.49]
[1719112649423,6.49,134.97,134.92,6.49]
[1719112655043,14.0687,134.98,134.93,6.49]
[1719112655612,43.18648067,134.99,134.94,6.49]
[1719112655811,35.4715,134.99,134.93,100.0]
[1719112656251,35.4715,134.99,134.94,6.49]
[1719112657136,28.9815,134.99,134.94,6.49]
[1719112659114,7.4085,134.98,134.94,6.49]
[1719112660228,7.4091,134.97,134.94,6.49]
[1719112660438,7.4091,134.97,134.93,6.49]
[1719112661946,7.4096,134.96,134.92,6.49]
[1719112662530,7.4101,134.95,134.91,100.0]
[1719112662730,7.4101,134.95,134.91,6.49]
[1719112663127,13.9008,134.94,134.89,100.0]
[1719112663318,13.9008,134.94,134.89,106.49]
[1719112664342,6.49,134.94,134.89,106.49]
[1719112664947,6.49,134.94,134.89,100.0]
[1719112665146,13.9009,134.94,134.89,100.0]
[1719112665326,13.9009,134.94,134.87,100.0]
[1719112665530,13.9009,134.94,134.89,6.49]
[1719112666435,6.49,134.94,134.89,6.49]
[1719112667542,6.49,134.94,134.9,6.49]
[1719112667741,7.4103,134.95,134.9,6.49]
[1719112667742,13.9003,134.95,134.9,6.49]
[1719112671228,7.4107,134.94,134.9,6.49]
[1719112673326,13.9004,134.95,134.9,6.49]
[1719112673529,7.4101,134.95,134.91,6.49]
[1719112673731,6.49,134.96,134.91,6.49]
[1719112673935,6.49,134.95,134.9,6.49]
[1719112675150,7.4107,134.94,134.9,6.49]
[1719112676248,7.4108,134.94,134.89,100.0]
[1719112676452,7.4108,134.94,134.9,6.49]
[1719112676831,13.9003,134.95,134.9,6.49]
[1719112679755,13.8998,134.96,134.91,6.49]
[1719112680629,6.49,134.96,134.91,106.49]
[1719112681058,21.78600097,134.97,134.92,6.49]
[1719112681238,7.4096,134.96,134.92,6.49]
[1719112681438,13.8996,134.96,134.91,6.49]
[1719112684840,13.8996,134.96,134.89,100.0]
[1719112685047,7.4101,134.95,134.9,6.49]
[1719112685947,7.4101,134.95,134.89,100.0]
[1719112686142,7.4101,134.95,134.9,6.49]
[1719112686456,15.29620097,134.97,134.92,6.49]
[1719112686643,14.0693,134.97,134.92,6.49]
[1719112686837,7.4096,134.96,134.92,6.49]
[1719112687239,7.4093,134.97,134.92,6.49]
[1719112687439,7.4093,134.97,134.93,6.49]
[1719112689962,6.66,134.98,134.93,6.49]
[1719112690153,7.4097,134.96,134.93,6.49]
[1719112691575,48.09029794,134.99,134.93,6.49]
[1719112691787,7.4092,134.97,134.93,6.49]
[1719112692067,7.4086,134.98,134.95,6.49]
[1719112692388,7.4086,134.98,134.96,2.9569545]
[1719112693047,7.408,134.99,134.96,2.9569545]
[1719112693461,13.5711613,135.0,134.95,106.49]
[1719112693671,7.4075,135.0,134.96,6.49]
[1719112694355,7.407,135.01,134.97,6.49]
[1719112695380,7.4074,135.0,134.95,100.0]
[1719112695553,7.4074,135.0,134.96,6.49]
[1719112697054,13.897,135.01,134.96,6.49]
[1719112698080,13.897,135.01,134.95,100.0]
[1719112698258,13.897,135.01,134.96,6.49]
[1719112698669,6.49,135.01,134.96,6.49]
[1719112699164,29.8496,135.02,134.97,6.49]
[1719112703168,23.3596,135.02,134.97,6.49]
[1719112703368,29.8496,135.02,134.97,106.49]
[1719112705166,7.4064,135.02,134.97,106.49]
[1719112705373,6.49,135.02,134.97,106.49]
[1719112705685,13.8959,135.03,134.98,6.49]
[1719112706265,13.8959,135.03,134.97,100.0]
[1719112706499,7.4063,135.02,134.97,100.0]
[1719112706668,7.4063,135.02,134.97,106.49]
[1719112707084,13.8963,135.02,134.97,106.49]
[1719112710263,7.89267081,135.04,134.97,106.49]
[1719112710264,7.406,135.03,134.97,106.49]
[1719112710465,13.896,135.03,134.97,106.49]
[1719112710886,13.896,135.03,134.98,6.49]
[1719112712972,7.4063,135.02,134.97,106.49]
[1719112713793,13.8963,135.02,134.97,106.49]
[1719112715403,7.4071,135.01,134.97,106.49]
[1719112715709,7.4071,135.01,134.97,100.0]
[1719112716902,13.8965,135.02,134.97,100.0]
[1719112718522,13.8965,135.02,134.97,106.49]
[1719112718724,6.49,135.02,134.97,106.49]
[1719112720620,13.896,135.03,134.97,106.49]
[1719112723689,13.896,135.03,134.98,6.49]
[1719112723889,7.72267081,135.04,134.99,100.0]
[1719112724113,6.49,135.05,135.0,6.49]
[1719112725084,7.4052,135.04,135.0,6.49]
[1719112725287,30.16730553,135.07,135.01,100.0]
[1719112725288,31.53568192,135.07,135.01,100.0]
[1719112725502,30.3024,135.07,135.02,6.49]
[1719112726108,7.4041,135.06,135.02,6.49]
[1719112727113,7.4041,135.06,135.01,100.0]
[1719112727293,7.4041,135.06,135.02,6.49]
[1719112727493,7.4041,135.06,135.01,100.0]
[1719112727710,7.4041,135.06,135.02,6.49]
[1719112728418,30.3024,135.07,135.02,6.49]
[1719112731400,7.4044,135.06,135.02,6.49]
[1719112731605,7.4044,135.06,135.01,100.0]
[1719112731793,6.49,135.05,134.99,106.3522]
[1719112731996,13.8955,135.04,134.99,112.8422]
[1719112732195,7.4059,135.03,134.99,106.49]
[1719112732699,13.8953,135.04,134.99,106.49]
[1719112733126,13.8953,135.04,134.99,100.0]
[1719112733903,6.49,135.04,134.99,106.49]
[1719112734222,6.49,135.05,135.0,6.49]
[1719112735113,7.4042,135.06,135.0,6.49]
[1719112735434,6.49,135.05,135.0,6.49]
[1719112736002,6.49,135.06,135.01,6.49]
[1719112736214,16.4087,135.07,135.02,6.49]
[1719112736407,13.8932,135.08,135.03,6.49]
[1719112736606,13.8932,135.08,135.03,106.49]
[1719112737805,7.4032,135.08,135.03,106.49]
[1719112738011,13.8932,135.08,135.03,106.49]
[1719112738611,7.4036,135.07,135.03,6.49]
[1719112740625,7.4049,135.05,135.0,22.4086]
[1719112740921,13.8949,135.05,135.0,28.8986]
[1719112741499,13.8949,135.05,134.99,100.0]
[1719112741702,6.49,135.03,134.97,100.0]
[1719112741921,13.8964,135.02,134.97,6.49]
[1719112742414,13.8964,135.02,134.96,28.6217]
[1719112742415,6.49,135.01,134.96,28.6217]
[1719112742803,6.49,135.01,134.95,100.0]